bitfinex/quotes_BTCUSD_20260311
["timestamp","ask_amount","ask_price","bid_price","bid_amount"]
[1773226102488,0.0288825,69661.0,69645.0,0.0001911]
[1773226102685,0.0288825,69661.0,69651.0,0.0002]
[1773226102934,0.0288825,69661.0,69645.0,0.0001911]
[1773226103347,0.00116,69663.0,69645.0,0.0001911]
[1773226103499,0.0288825,69662.0,69645.0,0.0001911]
[1773226104294,0.02885899,69659.0,69645.0,0.0001911]
[1773226106377,0.02887283,69657.0,69645.0,0.0001911]
[1773226106669,0.02887283,69655.0,69645.0,0.0001911]
[1773226108177,0.07178338,69654.0,69645.0,0.0001911]
[1773226108374,0.02863928,69653.0,69645.0,0.0001911]
[1773226110971,0.10046243,69652.0,69645.0,0.0001911]
[1773226111485,0.07178338,69654.0,69645.0,0.0001911]
[1773226113557,0.07178148,69656.0,69645.0,0.0001911]
[1773226113959,7.5e-05,69652.0,69645.0,0.0001911]
[1773226114357,0.02857344,69651.0,69645.0,0.0001911]
[1773226114695,7.5e-05,69652.0,69645.0,0.0001911]
[1773226116746,0.07178338,69654.0,69645.0,0.0001911]
[1773226116945,0.07178303,69655.0,69645.0,0.0001911]
[1773226117082,0.07178338,69654.0,69645.0,0.0001911]
[1773226121053,0.07178338,69654.0,69648.0,7.5e-05]
[1773226121454,0.02829454,69653.0,69648.0,7.5e-05]
[1773226122009,0.02825704,69651.0,69648.0,0.00018652]
[1773226122370,0.02825704,69651.0,69645.0,0.0001911]
[1773226122575,0.02825704,69651.0,69645.0,0.00024983]
[1773226123112,0.02825704,69651.0,69645.0,0.00044983]
[1773226124287,0.02902297,69649.0,69645.0,0.00044983]
[1773226126544,0.02902297,69649.0,69638.0,0.0719994]
[1773226126545,0.02905789,69648.0,69630.0,0.07188287]
[1773226126671,0.03028733,69648.0,69630.0,0.07188287]
[1773226128591,0.02900376,69646.0,69630.0,7.5e-05]
[1773226129019,0.02900376,69639.0,69626.0,0.07188703]
[1773226129189,0.02998245,69639.0,69626.0,0.07188703]
[1773226129623,0.03005745,69639.0,69626.0,0.07188703]
[1773226131196,0.07303477,69639.0,69626.0,0.07188703]
[1773226131345,0.07303477,69639.0,69630.0,0.0002]
[1773226131752,0.02902082,69638.0,69630.0,0.0002]
[1773226133193,0.07180091,69637.0,69630.0,0.0002]
[1773226134226,0.07161958,69637.0,69630.0,0.0002]
[1773226134835,0.10082173,69638.0,69630.0,0.0002]
[1773226137097,7.5e-05,69635.0,69630.0,0.0002]
[1773226137341,0.00116,69639.0,69630.0,0.0002]
[1773226137487,0.00116,69642.0,69630.0,0.0002]
[1773226137689,0.07187018,69643.0,69630.0,0.0002]
[1773226138279,0.07187018,69643.0,69630.0,0.0012]
[1773226138731,0.07187018,69643.0,69630.0,0.0002]
[1773226139144,0.07187018,69643.0,69630.0,0.07200812]
[1773226139346,0.07168887,69643.0,69630.0,0.07200812]
[1773226139545,0.09732575,69643.0,69631.0,0.00116]
[1773226139747,0.07168887,69643.0,69631.0,0.00116]
[1773226141387,0.07168887,69643.0,69632.0,0.07180606]
[1773226143040,0.07168887,69643.0,69631.0,0.07296672]
[1773226143268,0.02549582,69642.0,69631.0,0.00116]
[1773226143524,0.02549582,69642.0,69626.0,0.07188699]
[1773226143525,0.02549582,69640.0,69626.0,0.07304699]
[1773226143746,0.02549582,69640.0,69626.0,0.07304711]
[1773226143947,0.02549582,69640.0,69626.0,0.07188711]
[1773226144148,0.02549582,69640.0,69630.0,7.5e-05]
[1773226144975,0.02549582,69640.0,69635.0,7.5e-05]
[1773226145376,0.07179884,69639.0,69635.0,7.5e-05]
[1773226145587,0.02661374,69638.0,69635.0,7.5e-05]
[1773226146193,0.02653874,69638.0,69635.0,7.5e-05]
[1773226146446,0.00097872,69638.0,69626.0,0.02932711]
[1773226147478,0.07180091,69637.0,69626.0,0.02932711]
[1773226148444,0.07180091,69637.0,69626.0,0.02952711]
[1773226148645,0.00116,69638.0,69626.0,0.02952711]
[1773226148788,0.00116,69638.0,69628.0,0.03959285]
[1773226148990,0.00116,69638.0,69626.0,0.02952711]
[1773226150145,0.07179233,69646.0,69628.0,0.03959285]
[1773226151375,0.07179233,69646.0,69628.0,0.04059285]
[1773226151751,0.07179233,69646.0,69628.0,0.03959285]
[1773226151950,0.07179233,69646.0,69629.0,0.07180915]
[1773226152170,0.07179233,69646.0,69630.0,0.00116]
[1773226154296,0.07179233,69646.0,69631.0,0.07180709]
[1773226154445,0.07201065,69647.0,69631.0,0.07180709]
[1773226154651,0.00022001,69647.0,69637.0,0.03959285]
[1773226154869,0.07201087,69647.0,69637.0,0.04075285]
[1773226155307,0.07201087,69647.0,69637.0,0.00116]
[1773226156289,0.07201087,69647.0,69638.0,0.07179987]
[1773226156830,0.07201124,69647.0,69638.0,0.07179987]
[1773226157415,0.07201124,69647.0,69638.0,0.07172487]
[1773226157612,0.07201124,69647.0,69638.0,0.07164987]
[1773226157820,7.5e-05,69639.0,69638.0,0.07164987]
[1773226158382,7.5e-05,69639.0,69637.0,0.07295987]
[1773226159013,0.03729576,69639.0,69627.0,0.07181122]
[1773226159214,0.03729576,69639.0,69629.0,0.00116]
[1773226159449,0.03729576,69639.0,69627.0,0.07181122]
[1773226160235,0.07179987,69638.0,69626.0,0.07201193]
[1773226160590,0.03722076,69637.0,69626.0,0.07201193]
[1773226160862,0.03703942,69637.0,69626.0,0.07201193]
[1773226162735,0.03713009,69635.0,69626.0,0.07317193]
[1773226162943,0.03713009,69635.0,69626.0,0.07201193]
[1773226163602,0.03713009,69635.0,69626.0,0.07317193]
[1773226164874,0.10893409,69634.0,69630.0,7.5e-05]
[1773226165075,0.071804,69634.0,69630.0,7.5e-05]
[1773226165275,0.03713009,69633.0,69630.0,7.5e-05]
[1773226167897,0.07179987,69638.0,69630.0,7.5e-05]
[1773226168098,0.03713009,69637.0,69630.0,7.5e-05]
[1773226168704,0.03694876,69637.0,69630.0,7.5e-05]
[1773226170345,0.07180194,69636.0,69630.0,7.5e-05]
[1773226170642,0.10884136,69636.0,69630.0,7.5e-05]
[1773226171730,0.03703942,69635.0,69630.0,7.5e-05]
[1773226173043,0.10884342,69634.0,69630.0,7.5e-05]
[1773226173664,0.03703942,69633.0,69630.0,7.5e-05]
[1773226173870,0.03703942,69633.0,69627.0,0.0002]
[1773226174779,0.03703942,69633.0,69616.0,0.000132]
[1773226174987,0.03703942,69628.0,69618.0,0.00116]
[1773226175512,0.03819942,69628.0,69618.0,0.00116]
[1773226175917,0.03819942,69628.0,69616.0,0.07195373]
[1773226176905,0.03819942,69628.0,69627.0,0.0002]
[1773226177135,0.11000961,69628.0,69627.0,0.0002]
[1773226179708,0.11000961,69628.0,69627.0,0.000125]
[1773226179911,0.11000961,69628.0,69627.0,5e-05]
[1773226187699,0.11000961,69628.0,69620.0,0.0002]
[1773226188925,0.11000961,69628.0,69622.0,7.5e-05]
[1773226189551,0.10982822,69628.0,69622.0,7.5e-05]
[1773226191556,0.10964681,69628.0,69622.0,7.5e-05]
[1773226192753,0.07296915,69629.0,69622.0,7.5e-05]
[1773226193096,0.07181019,69628.0,69622.0,7.5e-05]
[1773226194846,0.07188415,69630.0,69622.0,7.5e-05]
[1773226194847,0.07187821,69635.0,69622.0,7.5e-05]
[1773226195174,0.07187821,69635.0,69623.0,0.00116]
[1773226195566,0.07187821,69635.0,69623.0,0.0013373]
[1773226195801,0.00022001,69628.0,69623.0,0.0013373]
[1773226196983,0.00022001,69628.0,69624.0,0.07181431]
[1773226197193,0.07180092,69637.0,69624.0,0.07181431]
[1773226198109,0.07180092,69637.0,69626.0,7.5e-05]
[1773226198541,0.00029501,69639.0,69626.0,7.5e-05]
[1773226198760,0.07179987,69638.0,69626.0,7.5e-05]
[1773226198961,0.07209488,69639.0,69626.0,7.5e-05]
[1773226199628,0.00029501,69639.0,69629.0,0.03963241]
[1773226199823,0.07209454,69639.0,69629.0,0.03963241]
[1773226200272,0.07209454,69639.0,69626.0,0.001075]
[1773226201360,0.07209454,69639.0,69626.0,7.5e-05]
[1773226203339,0.03703942,69638.0,69626.0,7.5e-05]
[1773226203546,0.03703942,69638.0,69613.0,0.000275]
[1773226203547,0.03703942,69635.0,69613.0,0.000275]
[1773226203745,0.03963241,69623.0,69605.0,0.1144631]
[1773226204002,0.03963241,69623.0,69604.0,0.21242257]
[1773226204003,0.03819942,69622.0,69604.0,7.5e-05]
[1773226204183,0.03819942,69622.0,69603.0,0.00116]
[1773226204949,0.03819942,69622.0,69603.0,0.00127178]
[1773226205165,0.03819942,69622.0,69609.0,0.0002]
[1773226205569,0.03700192,69620.0,69609.0,0.0002]
[1773226206260,0.00116,69619.0,69609.0,0.0002]
[1773226206511,0.03700192,69618.0,69609.0,0.0002]
[1773226207614,0.03700192,69616.0,69609.0,0.0002]
[1773226207963,0.07182153,69617.0,69609.0,0.0002]
[1773226207964,0.03700192,69612.0,69609.0,0.0002]
[1773226211169,7.5e-05,69613.0,69609.0,0.0002]
[1773226211427,0.07182153,69618.0,69603.0,0.06153673]
[1773226211631,0.07255782,69618.0,69603.0,0.06153673]
[1773226212002,0.0729805,69618.0,69603.0,0.06153673]
[1773226212237,7.5e-05,69622.0,69608.0,0.03963241]
[1773226212449,0.0002756,69630.0,69612.0,0.03963241]
[1773226212654,0.07208377,69630.0,69612.0,0.03963241]
[1773226213002,0.09058473,69630.0,69612.0,0.03963241]
[1773226213209,0.09058473,69630.0,69613.0,0.07182566]
[1773226214815,0.0002756,69630.0,69620.0,0.03963241]
[1773226215241,0.0002756,69630.0,69621.0,0.07181741]
[1773226216022,0.00022001,69629.0,69621.0,0.07181741]
[1773226217277,0.00022001,69629.0,69620.0,0.07181741]
[1773226217278,0.07181019,69628.0,69620.0,0.07181741]
[1773226217962,0.09053095,69629.0,69620.0,0.07181741]
[1773226218266,0.00022001,69635.0,69620.0,0.07181741]
[1773226218466,0.0720233,69635.0,69620.0,0.07181741]
[1773226219250,0.0720233,69635.0,69622.0,7.5e-05]
[1773226219453,0.0720233,69635.0,69620.0,0.07281741]
[1773226219706,0.0720983,69635.0,69620.0,0.07281741]
[1773226219878,0.0720983,69635.0,69620.0,0.07181741]
[1773226220081,0.0720983,69635.0,69620.0,0.16188641]
[1773226220678,0.0720983,69635.0,69620.0,0.16288641]
[1773226220881,0.0720983,69635.0,69620.0,0.16188641]
[1773226221314,1e-08,69635.0,69620.0,0.16188641]
[1773226221817,1e-08,69635.0,69625.0,0.03963241]
[1773226221975,1e-08,69635.0,69626.0,0.00116]
[1773226222876,0.08146697,69642.0,69626.0,0.00116]
[1773226223228,0.00011161,69635.0,69626.0,0.00116]
[1773226223397,0.00011161,69635.0,69627.0,0.07181122]
[1773226224411,0.00925048,69641.0,69627.0,0.07181122]
[1773226224578,0.00925048,69641.0,69627.0,0.07192283]
[1773226224777,0.00925048,69641.0,69627.0,0.57192283]
[1773226225042,0.00022001,69635.0,69627.0,0.57192283]
[1773226226289,0.00925048,69641.0,69627.0,0.57192283]
[1773226227098,0.00906899,69641.0,69630.0,0.03963241]
[1773226227525,0.00042061,69642.0,69630.0,0.03963241]
[1773226227729,0.00042061,69642.0,69630.0,0.03970741]
[1773226228622,0.00042061,69642.0,69635.0,7.5e-05]
[1773226229476,0.00042061,69642.0,69635.0,0.500075]
[1773226229676,0.00915974,69641.0,69635.0,0.500075]
[1773226229876,0.00915974,69641.0,69635.0,0.5]
[1773226230857,0.00042061,69642.0,69636.0,0.07180194]
[1773226232949,0.00022001,69646.0,69636.0,0.07180194]
[1773226233122,1e-08,69646.0,69636.0,0.07180194]
[1773226233479,0.07179208,69646.0,69636.0,0.07180194]
[1773226233904,0.00022001,69641.0,69636.0,0.57180194]
[1773226237465,0.00022001,69641.0,69639.0,7.5e-05]
[1773226238418,1e-08,69646.0,69639.0,7.5e-05]
[1773226238584,1e-08,69646.0,69636.0,0.57180194]
[1773226240383,1e-08,69646.0,69636.0,0.57200194]
[1773226244454,0.00022001,69649.0,69636.0,0.6116071]
[1773226244798,0.00915974,69648.0,69636.0,0.57200194]
[1773226245989,0.00915974,69648.0,69636.0,0.57300194]
[1773226247004,0.00915974,69648.0,69636.0,0.57200194]
[1773226247446,0.00022001,69649.0,69636.0,0.57200194]
[1773226247832,0.00022001,69649.0,69643.0,7.5e-05]
[1773226248834,0.00022001,69649.0,69640.0,0.00116]
[1773226249251,0.00022001,69649.0,69641.0,0.07179678]
[1773226249588,0.00022001,69648.0,69641.0,0.07179678]
[1773226256023,0.00029501,69648.0,69641.0,0.07179678]
[1773226262574,0.00029501,69648.0,69641.0,0.07199678]
[1773226264916,0.00042061,69653.0,69641.0,0.07199678]
[1773226265116,0.00042061,69653.0,69642.0,0.00084025]
[1773226266121,0.00022001,69653.0,69642.0,0.00084025]
[1773226266367,0.00037681,69653.0,69642.0,0.11420633]
[1773226266563,0.00512192,69653.0,69642.0,0.11420633]
[1773226267509,0.00512192,69653.0,69643.0,0.07179472]
[1773226267751,0.00512192,69653.0,69648.0,7.5e-05]
[1773226271194,0.00467123,69653.0,69648.0,7.5e-05]
[1773226272370,0.00489124,69653.0,69648.0,7.5e-05]
[1773226273458,0.00022001,69653.0,69648.0,7.5e-05]
[1773226278468,0.00474511,69652.0,69648.0,7.5e-05]
[1773226278681,0.00474511,69651.0,69642.0,0.11435685]
[1773226278886,0.00474511,69651.0,69642.0,0.07179496]
[1773226279090,0.00116,69650.0,69642.0,0.07179496]
[1773226279342,0.00474511,69649.0,69642.0,0.07179496]
[1773226279757,0.00474511,69649.0,69641.0,0.0002]
[1773226279966,0.00474511,69649.0,69639.0,0.07187372]
[1773226281638,0.07178957,69648.0,69639.0,7.5e-05]
[1773226281829,0.00490116,69647.0,69639.0,7.5e-05]
[1773226283431,0.00490116,69647.0,69637.0,0.07179884]
[1773226283732,0.00490116,69647.0,69636.0,0.57200091]
[1773226283733,0.07179163,69646.0,69636.0,0.57200091]
[1773226283933,0.00490116,69645.0,69637.0,0.07179884]
[1773226285405,0.00490116,69645.0,69639.0,0.0002]
[1773226285802,0.07179319,69645.0,69639.0,0.0002]
[1773226286003,0.00490116,69644.0,69639.0,0.0002]
[1773226288356,0.07179298,69646.0,69639.0,0.0002]
[1773226290635,7.5e-05,69643.0,69639.0,0.0002]
[1773226291902,7.5e-05,69643.0,69639.0,4.871e-05]
[1773226293242,0.00497616,69643.0,69637.0,0.07169625]
[1773226293394,0.00497616,69643.0,69637.0,0.07154495]
[1773226294290,0.00497616,69643.0,69636.0,0.5002]
[1773226294518,0.00497616,69643.0,69636.0,0.29042527]
[1773226294857,0.00490116,69641.0,69636.0,0.24015616]
[1773226295008,0.00490116,69641.0,69639.0,0.0002]
[1773226295619,0.00490116,69641.0,69635.0,7.5e-05]
[1773226296910,0.00490116,69639.0,69635.0,7.5e-05]
[1773226298271,0.00490116,69639.0,69632.0,0.00017252]
[1773226300416,0.07179987,69638.0,69632.0,2.124e-05]
[1773226302274,0.00490116,69637.0,69632.0,2.124e-05]
[1773226302458,0.00490116,69635.0,69632.0,2.124e-05]
[1773226305413,0.071804,69634.0,69632.0,2.124e-05]
[1773226305762,0.07670516,69634.0,69632.0,2.124e-05]
[1773226307734,0.071804,69634.0,69628.0,0.09122275]
[1773226307911,0.07188954,69634.0,69628.0,0.09122275]
[1773226308845,0.07188954,69634.0,69628.0,0.09107156]
[1773226309273,0.07188954,69634.0,69628.0,0.09092038]
[1773226310045,0.07188954,69634.0,69628.0,0.09076921]
[1773226310251,0.07188954,69634.0,69623.0,0.07181449]
[1773226310252,0.00583377,69633.0,69607.0,0.00116]
[1773226310450,0.00467377,69633.0,69613.0,0.07656188]
[1773226310767,0.00467377,69631.0,69614.0,0.00466129]
[1773226311119,0.00116,69630.0,69620.0,0.03961396]
[1773226311323,0.00116,69632.0,69618.0,0.00466129]
[1773226311497,0.00116,69632.0,69620.0,0.03961396]
[1773226311713,0.07188954,69634.0,69614.0,0.00116]
[1773226311714,0.00467377,69631.0,69614.0,0.00116]
[1773226311873,0.00467377,69631.0,69615.0,0.00466129]
[1773226312093,0.07180812,69630.0,69616.0,0.07182256]
[1773226312544,0.07180812,69630.0,69621.0,0.0002]
[1773226320342,0.00030555,69634.0,69622.0,0.00482642]
[1773226320648,0.07211024,69634.0,69622.0,0.00482642]
[1773226320805,7.5e-05,69626.0,69625.0,0.00482642]
[1773226321009,0.07201745,69641.0,69625.0,0.00493803]
[1773226321010,7.5e-05,69630.0,69625.0,0.00493803]
[1773226321207,0.07201745,69641.0,69625.0,0.00493803]
[1773226321596,0.07201745,69641.0,69631.0,0.07180709]
[1773226324569,0.00022001,69641.0,69631.0,0.07180709]
[1773226324817,0.07201723,69641.0,69631.0,0.07180709]
[1773226326280,0.07201723,69641.0,69630.0,0.07296709]
[1773226326519,0.07201723,69641.0,69630.0,0.00116]
[1773226326520,0.00455377,69640.0,69630.0,0.00116]
[1773226326758,0.00455377,69640.0,69625.0,0.00011161]
[1773226327931,0.00455377,69638.0,69625.0,0.00011161]
[1773226328132,0.07295884,69639.0,69626.0,7.5e-05]
[1773226328579,0.07751261,69639.0,69626.0,7.5e-05]
[1773226328982,0.07751261,69639.0,69630.0,7.5e-05]
[1773226330015,0.00455377,69638.0,69630.0,7.5e-05]
[1773226330458,0.00411853,69638.0,69630.0,7.5e-05]
[1773226331654,0.00411853,69638.0,69635.0,7.5e-05]
[1773226331856,0.07295884,69639.0,69635.0,7.5e-05]
[1773226332258,0.07179977,69639.0,69635.0,7.5e-05]
[1773226332824,0.07635354,69639.0,69635.0,7.5e-05]
[1773226333237,0.00455377,69638.0,69630.0,7.5e-05]
[1773226333383,0.00455377,69638.0,69626.0,7.5e-05]
[1773226334036,0.00455377,69636.0,69626.0,7.5e-05]
[1773226336240,0.00455377,69634.0,69626.0,7.5e-05]
[1773226338360,0.07180503,69633.0,69626.0,7.5e-05]
[1773226340360,0.07188003,69635.0,69626.0,7.5e-05]
[1773226342115,0.00471242,69634.0,69626.0,7.5e-05]
[1773226342748,0.00471242,69632.0,69622.0,7.5e-05]
[1773226342945,0.00471242,69630.0,69622.0,0.00016054]
[1773226344537,0.00116,69631.0,69622.0,0.00016054]
[1773226344753,0.00116,69631.0,69623.0,0.00489222]
[1773226344961,0.00116,69631.0,69622.0,0.07197677]
[1773226345164,0.00116,69632.0,69622.0,0.07197677]
[1773226345724,0.00116,69633.0,69622.0,0.07197677]
[1773226346217,0.00116,69633.0,69622.0,0.0721766]
[1773226346426,0.00587242,69633.0,69622.0,0.00036054]
[1773226346773,0.00471242,69631.0,69622.0,0.00036054]
[1773226346980,0.00471242,69631.0,69623.0,0.001]
[1773226347299,0.00471242,69631.0,69622.0,0.00036054]
[1773226347551,7.5e-05,69630.0,69622.0,0.00036054]
[1773226349382,0.07188312,69630.0,69622.0,0.00036054]
[1773226349517,0.07659554,69630.0,69622.0,0.00036054]
[1773226349961,0.07188312,69630.0,69622.0,0.00036054]
[1773226350713,0.07188312,69630.0,69622.0,0.0721767]
[1773226351059,0.07188312,69630.0,69622.0,0.00036054]
[1773226351565,7.5e-05,69630.0,69622.0,0.07217657]
[1773226353034,7.5e-05,69630.0,69622.0,0.07217677]
[1773226355571,0.00471242,69629.0,69622.0,0.07217677]
[1773226357775,0.07181019,69628.0,69622.0,0.00036054]
[1773226360267,0.07180949,69629.0,69622.0,0.00036054]
[1773226360492,0.07202518,69633.0,69623.0,0.00489222]
[1773226361063,0.07202518,69633.0,69623.0,0.00605222]
[1773226361909,0.07180481,69634.0,69623.0,0.00605222]
[1773226361910,0.07180477,69634.0,69623.0,0.00605222]
[1773226362173,0.07187852,69635.0,69625.0,0.00489222]
[1773226362571,7.5e-05,69635.0,69625.0,0.00489222]
[1773226363417,0.00022001,69633.0,69625.0,0.00489222]
[1773226364432,0.00022001,69633.0,69626.0,0.07670447]
[1773226365840,0.00022001,69649.0,69627.0,0.00489222]
[1773226365841,0.07187473,69639.0,69627.0,0.00489222]
[1773226366441,0.07187473,69639.0,69628.0,0.07181019]
[1773226366898,0.07187473,69639.0,69629.0,0.00489222]
[1773226367323,0.07187473,69639.0,69629.0,0.00605222]
[1773226367742,0.07187473,69639.0,69629.0,0.00116]
[1773226369256,0.07187473,69639.0,69630.0,0.07180812]
[1773226371164,0.07209474,69639.0,69630.0,0.07180812]
[1773226373933,0.07209474,69639.0,69630.0,0.07188312]
[1773226382372,0.1486,69638.0,69630.0,0.07188312]
[1773226383437,0.07209474,69639.0,69630.0,0.07188312]
[1773226387554,0.07229704,69639.0,69630.0,0.07188312]
[1773226390489,0.07189644,69639.0,69630.0,0.07188312]
[1773226392779,0.07189644,69639.0,69630.0,0.07208312]
[1773226393196,0.07189644,69639.0,69635.0,7.5e-05]
[1773226399359,0.0046476,69638.0,69635.0,7.5e-05]
[1773226399563,0.0048499,69638.0,69635.0,7.5e-05]
[1773226400259,0.0048499,69638.0,69626.0,7.5e-05]
[1773226400896,0.11164132,69640.0,69628.0,0.03962329]
[1773226400897,0.07317825,69640.0,69628.0,0.03962329]
[1773226401096,0.07317825,69640.0,69627.0,0.00467534]
[1773226401414,0.07774521,69640.0,69630.0,0.0002]
[1773226401581,0.001,69638.0,69630.0,0.0002]
[1773226401776,0.00556696,69638.0,69630.0,0.0002]
[1773226401979,0.00456696,69638.0,69626.0,7.5e-05]
[1773226402187,0.00456696,69635.0,69626.0,7.5e-05]
[1773226402408,0.00456696,69633.0,69626.0,7.5e-05]
[1773226402806,0.07637302,69632.0,69626.0,7.5e-05]
[1773226404122,0.00456696,69631.0,69626.0,7.5e-05]
[1773226404836,0.07180812,69630.0,69626.0,7.5e-05]
[1773226404991,0.00456696,69629.0,69626.0,7.5e-05]
[1773226407941,0.00456696,69627.0,69626.0,0.000275]
[1773226411310,0.07180936,69629.0,69626.0,0.000275]
[1773226411553,0.07637632,69629.0,69626.0,0.000275]
[1773226412526,0.07180936,69629.0,69626.0,0.000275]
[1773226416636,0.07753396,69632.0,69626.0,0.000275]
[1773226416839,0.00456696,69631.0,69623.0,0.0002]
[1773226417046,0.00456696,69631.0,69617.0,0.001235]
[1773226417457,0.072967,69632.0,69613.0,7.5e-05]
[1773226417458,0.03962329,69627.0,69613.0,7.5e-05]
[1773226417661,0.00456696,69624.0,69613.0,7.5e-05]
[1773226418663,0.00456696,69622.0,69613.0,7.5e-05]
[1773226419375,0.00456696,69622.0,69612.0,1e-08]
[1773226419698,0.07181534,69623.0,69612.0,1e-08]
[1773226419699,0.00456696,69621.0,69612.0,1e-08]
[1773226419930,0.00456696,69619.0,69612.0,1e-08]
[1773226420845,0.00456696,69617.0,69612.0,1e-08]
[1773226422211,0.00556696,69617.0,69612.0,1e-08]
[1773226423031,0.07182256,69616.0,69612.0,1e-08]
[1773226423237,0.07189213,69622.0,69612.0,1e-08]
[1773226423441,0.07189213,69622.0,69612.0,0.00467535]
[1773226423442,0.07181741,69621.0,69612.0,0.00467535]
[1773226423894,0.07181741,69621.0,69612.0,1e-08]
[1773226425890,7.5e-05,69622.0,69612.0,0.00100001]
[1773226426085,7.5e-05,69622.0,69612.0,1e-08]
[1773226430476,7.5e-05,69617.0,69612.0,1e-08]
[1773226437270,0.00018666,69617.0,69612.0,1e-08]
[1773226441224,0.07181741,69624.0,69612.0,1e-08]
[1773226441225,7.5e-05,69626.0,69613.0,0.07182566]
[1773226441417,7.5e-05,69626.0,69614.0,0.00459319]
[1773226442129,7.5e-05,69626.0,69614.0,0.00500259]
[1773226442334,0.00022001,69622.0,69614.0,0.00500259]
[1773226442670,7.5e-05,69626.0,69614.0,0.00500259]
[1773226442881,0.00022001,69644.0,69614.0,0.00500259]
[1773226442882,0.07180445,69634.0,69616.0,0.03964986]
[1773226443033,0.00116,69633.0,69618.0,0.00459319]
[1773226443413,0.07180606,69632.0,69619.0,0.07641266]
[1773226443604,0.07180606,69632.0,69619.0,0.07181947]
[1773226443805,0.0045222,69631.0,69618.0,0.07181947]
[1773226444055,0.0045222,69631.0,69618.0,0.07222887]
[1773226444687,0.0045222,69629.0,69618.0,0.0004094]
[1773226445547,0.0045222,69627.0,69618.0,0.0004094]
[1773226445741,0.00116,69626.0,69618.0,0.0004094]
[1773226445950,0.0045222,69625.0,69618.0,0.0004094]
[1773226447167,0.07180451,69634.0,69619.0,0.07641266]
[1773226447327,0.0045222,69633.0,69619.0,0.07181947]
[1773226447537,0.0045222,69631.0,69619.0,0.07181947]
[1773226447764,0.0045222,69631.0,69619.0,0.07297947]
[1773226448138,0.0045222,69631.0,69619.0,0.07338887]
[1773226448357,0.0045222,69631.0,69619.0,0.07222887]
[1773226448725,0.03964986,69630.0,69618.0,0.00116]
[1773226448949,0.03964986,69630.0,69617.0,7.5e-05]
[1773226448950,0.00116,69629.0,69617.0,7.5e-05]
[1773226449303,0.0045222,69628.0,69612.0,0.07182659]
[1773226449504,0.07181122,69627.0,69614.0,0.0002]
[1773226449783,0.0045222,69626.0,69614.0,0.0002]
[1773226450770,0.0044472,69626.0,69614.0,0.0002]
[1773226450994,0.07181122,69627.0,69611.0,1e-08]
[1773226450995,0.0045222,69623.0,69611.0,1e-08]
[1773226451196,0.00116,69622.0,69609.0,1e-08]
[1773226451360,0.0045222,69619.0,69609.0,0.00011167]
[1773226451563,0.0718205,69618.0,69609.0,0.00011167]
[1773226451781,0.0045222,69617.0,69609.0,0.00011167]
[1773226452009,0.00116,69616.0,69609.0,0.00011167]
[1773226452185,0.0056822,69616.0,69609.0,0.00011167]
[1773226452387,0.0045222,69616.0,69609.0,0.00011167]
[1773226452589,0.00116,69615.0,69609.0,0.00011167]
[1773226452963,0.0056822,69615.0,69609.0,0.00011167]
[1773226453163,0.0045222,69614.0,69609.0,0.00011167]
[1773226453608,0.07182566,69613.0,69609.0,0.00011167]
[1773226453818,0.0045222,69612.0,69609.0,0.00011167]
[1773226455392,0.07182566,69613.0,69609.0,0.00011167]
[1773226456220,0.07182566,69614.0,69609.0,0.00011167]
[1773226457569,0.00022001,69630.0,69611.0,0.00459319]
[1773226457859,0.0045222,69627.0,69612.0,0.07182669]
[1773226458065,0.0045222,69627.0,69613.0,0.00116]
[1773226458638,0.0045222,69627.0,69613.0,0.00575319]
[1773226458822,0.07181019,69628.0,69613.0,0.00116]
[1773226459023,0.07181019,69628.0,69614.0,0.00459319]
[1773226460057,0.07181019,69628.0,69617.0,0.00477863]
[1773226460749,0.07181019,69628.0,69617.0,0.00470363]
[1773226461209,0.07181019,69629.0,69617.0,0.00470363]
[1773226461417,0.07326391,69630.0,69615.0,0.0718236]
[1773226461418,0.07210348,69630.0,69620.0,0.00470363]
[1773226461737,0.07210348,69630.0,69620.0,0.00586363]
[1773226461738,0.07180915,69629.0,69620.0,0.00586363]
[1773226462099,0.07180915,69629.0,69622.0,0.00470363]
[1773226463114,0.07180551,69633.0,69622.0,0.00470363]
[1773226463568,7.5e-05,69635.0,69622.0,0.00470363]
[1773226463724,0.071804,69634.0,69622.0,0.00470363]
[1773226464169,0.071804,69634.0,69623.0,0.07181534]
[1773226466783,0.00462051,69633.0,69621.0,0.07181723]
[1773226467597,0.00462051,69630.0,69619.0,0.00116]
[1773226468558,0.00116,69630.0,69621.0,0.07181741]
[1773226468709,0.00116,69630.0,69622.0,0.00470363]
[1773226470262,0.07202401,69634.0,69622.0,0.00470363]
[1773226470626,0.07202401,69634.0,69626.0,7.5e-05]
[1773226472181,0.00462051,69633.0,69626.0,7.5e-05]
[1773226472540,0.00462051,69633.0,69623.0,0.07181534]
[1773226473077,0.00462051,69631.0,69622.0,7.5e-05]
[1773226475375,0.00462051,69631.0,69619.0,0.07297844]
[1773226475376,0.00462051,69629.0,69619.0,0.07297844]
[1773226475576,0.00462051,69629.0,69619.0,0.0729793]
[1773226476787,0.07180812,69630.0,69619.0,0.0729793]
[1773226477023,0.07180812,69631.0,69619.0,0.0729793]
[1773226477024,0.07180812,69631.0,69620.0,0.00470363]
[1773226477341,0.07180812,69631.0,69622.0,0.07181637]
[1773226477541,0.07180812,69631.0,69622.0,0.07652]
[1773226479608,0.07180812,69631.0,69622.0,0.07181637]
[1773226479802,0.00462051,69630.0,69621.0,0.07181637]
[1773226480044,0.07180812,69631.0,69617.0,0.07189595]
[1773226480045,0.00462051,69628.0,69617.0,0.07189595]
[1773226480204,0.00462051,69628.0,69617.0,7.5e-05]
[1773226480609,0.00462051,69628.0,69617.0,0.07189639]
[1773226481475,7.5e-05,69626.0,69622.0,0.0002]
[1773226481655,0.00469551,69626.0,69622.0,0.0002]
[1773226482438,0.00497861,69626.0,69622.0,0.0002]
[1773226482654,0.0003581,69626.0,69622.0,0.0002]
[1773226483483,0.07181328,69625.0,69622.0,4.883e-05]
[1773226484451,0.07209638,69625.0,69622.0,4.883e-05]
[1773226485862,0.00462051,69624.0,69615.0,0.07318355]
[1773226486056,0.00462051,69624.0,69615.0,0.00136]
[1773226486457,0.00490361,69624.0,69615.0,0.00136]
[1773226486694,0.00490361,69624.0,69615.0,0.0002]
[1773226486896,0.00462051,69622.0,69612.0,0.07182474]
[1773226487606,0.00490361,69622.0,69612.0,0.07182474]
[1773226487804,0.07181741,69621.0,69610.0,0.07182868]
[1773226488133,0.00462051,69620.0,69610.0,0.07182868]
[1773226488610,0.00477011,69620.0,69612.0,0.0002]
[1773226489458,7.5e-05,69617.0,69612.0,0.0002]
[1773226490415,0.0002246,69617.0,69612.0,0.0002]
[1773226493829,0.07202694,69622.0,69613.0,0.0045289]
[1773226494622,0.07202694,69622.0,69614.0,0.07182463]
[1773226494825,0.07202694,69622.0,69615.0,0.00116]
[1773226495268,0.00116,69628.0,69615.0,0.00116]
[1773226495269,0.00022001,69647.0,69616.0,0.0045289]
[1773226495498,0.00022001,69647.0,69625.0,0.0048106]
[1773226495499,0.07201238,69646.0,69625.0,0.0048106]
[1773226495667,0.00491945,69639.0,69626.0,0.00116]